bitfinex-derivatives/quotes_BTCF0:USTF0_20240825
["timestamp","ask_amount","ask_price","bid_price","bid_amount"]
[1724544482610,0.36674951,64427.0,64419.0,0.3608]
[1724544483322,0.36674951,64427.0,64426.0,4e-05]
[1724544483701,0.91096151,64427.0,64426.0,4e-05]
[1724544483912,0.077587,64415.0,64414.0,0.00023289]
[1724544484113,0.077593,64410.0,64409.0,0.002]
[1724544484302,0.077593,64410.0,64402.0,0.3608]
[1724544484303,1.15726216,64410.0,64402.0,0.3608]
[1724544484610,0.3608,64408.0,64402.0,0.3608]
[1724544484812,0.077597,64407.0,64402.0,0.3608]
[1724544485108,4e-05,64403.0,64402.0,0.3608]
[1724544485514,0.86588,64403.0,64402.0,0.3608]
[1724544486021,1.16588,64403.0,64394.0,0.3608]
[1724544486216,1.16588,64403.0,64392.0,0.04559208]
[1724544486217,0.461722,64402.0,64392.0,0.04559208]
[1724544486407,0.461722,64402.0,64385.0,0.3608]
[1724544486408,0.3608,64396.0,64390.0,0.04559208]
[1724544487116,4e-05,64391.0,64390.0,0.04559208]
[1724544487313,4e-05,64391.0,64389.0,0.04559208]
[1724544488106,4e-05,64391.0,64390.0,0.002]
[1724544488411,0.001,64396.0,64390.0,0.002]
[1724544488614,0.00023289,64397.0,64393.0,0.04569148]
[1724544489111,0.00023289,64397.0,64392.0,0.40649148]
[1724544489311,0.00023289,64397.0,64396.0,4e-05]
[1724544491512,0.00023289,64397.0,64396.0,0.00204]
[1724544495217,1.0719,64403.0,64396.0,0.00204]
[1724544495419,0.3608,64402.0,64396.0,0.00204]
[1724544495820,1.0719,64403.0,64396.0,0.00204]
[1724544496613,1.0719,64403.0,64402.0,4e-05]
[1724544497819,1.08060591,64403.0,64402.0,4e-05]
[1724544499226,1.44140591,64403.0,64402.0,4e-05]
[1724544500919,1.98484691,64403.0,64393.0,0.00023289]
[1724544501121,1.74140591,64403.0,64393.0,0.00023289]
[1724544501323,0.077612,64394.0,64393.0,0.00023289]
[1724544501818,0.943532,64394.0,64393.0,0.00023289]
[1724544503275,0.943532,64394.0,64393.0,0.00223289]
[1724544503838,0.943532,64394.0,64393.0,0.00023289]
[1724544504023,0.948532,64394.0,64393.0,0.00023289]
[1724544504217,0.948532,64394.0,64386.0,0.3608]
[1724544504218,0.87092,64394.0,64386.0,0.3608]
[1724544504422,0.07762,64387.0,64386.0,0.3608]
[1724544504618,1.4327,64387.0,64382.0,0.00018297]
[1724544505027,1.0719,64387.0,64386.0,0.438422]
[1724544505229,0.49882001,64393.0,64390.0,0.077617]
[1724544505529,0.49882001,64393.0,64392.0,0.3608]
[1724544505990,0.49882001,64393.0,64392.0,0.36084]
[1724544506431,0.49882001,64393.0,64392.0,1.304334]
[1724544506644,0.077583,64419.0,64402.0,0.077602]
[1724544506823,1.0719,64419.0,64412.0,0.3608]
[1724544507530,1.0719,64419.0,64404.0,0.3608]
[1724544507531,1.15542518,64419.0,64418.0,4e-05]
[1724544507930,2.02114518,64419.0,64418.0,4e-05]
[1724544508231,2.03514518,64419.0,64418.0,4e-05]
[1724544508525,1.09184318,64419.0,64418.0,4e-05]
[1724544509636,1.55756318,64419.0,64418.0,4e-05]
[1724544511429,1.09184318,64419.0,64418.0,4e-05]
[1724544511838,1.55756318,64419.0,64418.0,4e-05]
[1724544512734,1.54356318,64419.0,64418.0,4e-05]
[1724544512935,1.55756318,64419.0,64418.0,4e-05]
[1724544513236,1.55756318,64419.0,64412.0,0.00023289]
[1724544513431,0.3608,64414.0,64412.0,0.00023289]
[1724544513934,4e-05,64413.0,64412.0,0.00023289]
[1724544515729,0.01404,64413.0,64412.0,0.00023289]
[1724544515928,0.091629,64413.0,64412.0,0.00023289]
[1724544516325,0.01404,64413.0,64412.0,0.00023289]
[1724544516539,1.08594,64413.0,64412.0,0.00023289]
[1724544519131,1.07194,64413.0,64412.0,0.00023289]
[1724544519336,1.08594,64413.0,64412.0,0.00023289]
[1724544520235,1.10926,64413.0,64412.0,0.00023289]
[1724544521341,1.09526,64413.0,64412.0,0.00023289]
[1724544521541,1.10926,64413.0,64412.0,0.00023289]
[1724544521938,1.09526,64413.0,64412.0,0.00023289]
[1724544522145,1.10926,64413.0,64412.0,0.00023289]
[1724544522439,1.186849,64413.0,64412.0,0.00023289]
[1724544526342,1.10926,64413.0,64412.0,0.00023289]
[1724544526939,0.077599,64405.0,64399.0,0.3235]
[1724544527135,0.077624,64384.0,64380.0,0.04577639]
[1724544527348,0.077624,64384.0,64376.0,0.3608]
[1724544527349,0.24,64383.0,64376.0,0.3608]
[1724544527645,0.3608,64382.0,64376.0,0.3608]
[1724544527838,0.317626,64383.0,64376.0,0.3608]
[1724544528147,4e-05,64377.0,64376.0,0.3608]
[1724544528743,1.31194,64377.0,64376.0,0.3608]
[1724544528936,1.33526,64377.0,64376.0,0.3658]
[1724544529244,1.69606,64377.0,64365.0,0.04577639]
[1724544529445,1.69606,64377.0,64364.0,0.3608]
[1724544529446,0.24,64370.0,64364.0,0.3608]
[1724544530244,4e-05,64365.0,64364.0,0.3608]
[1724544531143,0.36084,64365.0,64357.0,0.2435]
[1724544531541,0.36184,64365.0,64357.0,0.2435]
[1724544531843,4e-05,64358.0,64357.0,0.2435]
[1724544532245,4e-05,64358.0,64354.0,0.3608]
[1724544533050,4e-05,64355.0,64354.0,0.3608]
[1724544533944,1.07278,64361.0,64354.0,1.22696]
[1724544534146,1.07278,64361.0,64360.0,0.3608]
[1724544534147,1.0719,64361.0,64360.0,0.3608]
[1724544534337,1.0719,64361.0,64360.0,0.7608]
[1724544534650,1.0719,64361.0,64360.0,1.22696]
[1724544535351,0.07763,64379.0,64364.0,0.077648]
[1724544535549,0.48343289,64371.0,64368.0,0.3608]
[1724544536045,0.48343289,64371.0,64370.0,4e-05]
[1724544536642,0.48443289,64371.0,64370.0,4e-05]
[1724544545455,0.001,64371.0,64370.0,0.943721]
[1724544548352,0.3608,64407.0,64391.0,0.077615]
[1724544548555,0.00084,64401.0,64396.0,0.3608]
[1724544548757,0.3608,64407.0,64396.0,0.3608]
[1724544549458,0.438396,64407.0,64406.0,4e-05]
[1724544549952,0.44420745,64407.0,64406.0,4e-05]
[1724544550749,0.077605,64400.0,64395.0,0.00023307]
[1724544550960,0.438405,64400.0,64395.0,0.00023307]
[1724544551452,4e-05,64396.0,64395.0,0.00023307]
[1724544552057,0.86592,64396.0,64376.0,0.3608]
[1724544552258,0.3608,64386.0,64376.0,0.3608]
[1724544552746,4e-05,64377.0,64376.0,0.3608]
[1724544553850,4e-05,64377.0,64370.0,0.00023307]
[1724544554156,0.3608,64373.0,64370.0,0.00023307]
[1724544554353,0.24,64376.0,64370.0,0.00023307]
[1724544554650,4e-05,64371.0,64370.0,0.00023307]
[1724544557053,0.00104,64371.0,64370.0,0.00023307]
[1724544563966,0.00104,64371.0,64370.0,0.07787407]
[1724544569069,0.00076694,64371.0,64370.0,0.07787407]
[1724544569870,0.00076694,64371.0,64370.0,0.00023307]
[1724544571269,0.24076694,64371.0,64359.0,0.3235]
[1724544571570,0.3608,64364.0,64358.0,0.00136]
[1724544571775,0.3608,64364.0,64355.0,0.40645895]
[1724544572463,0.3608,64364.0,64355.0,0.3608]
[1724544572666,0.3608,64364.0,64350.0,0.0608786]
[1724544572667,0.24,64361.0,64350.0,0.04565895]
[1724544572882,0.24,64361.0,64348.0,0.36915895]
[1724544573066,0.24,64355.0,64348.0,0.3235]
[1724544573271,0.24,64355.0,64345.0,0.04565895]
[1724544573472,0.24,64349.0,64344.0,0.3608]
[1724544574282,4e-05,64345.0,64344.0,0.3608]
[1724544574873,4e-05,64345.0,64344.0,0.36289395]
[1724544576180,4e-05,64345.0,64344.0,0.00209395]
[1724544576972,0.46728,64345.0,64344.0,0.00209395]
[1724544577281,0.47413682,64345.0,64344.0,0.00209395]
[1724544577583,0.47513682,64345.0,64344.0,0.00209395]
[1724544577885,0.64893682,64345.0,64344.0,0.00209395]
[1724544578181,1.04893682,64345.0,64337.0,0.00011292]
[1724544578381,0.3608,64338.0,64337.0,0.00011292]
[1724544578985,0.36084,64338.0,64337.0,0.00011292]
[1724544579235,0.82712,64338.0,64337.0,0.00011292]
[1724544579786,0.36084,64338.0,64337.0,0.00011292]
[1724544580180,0.36184,64338.0,64337.0,0.00011292]
[1724544581180,0.36084,64338.0,64337.0,0.00011292]
[1724544581389,0.36384,64338.0,64337.0,0.00011292]
[1724544581580,1.23012,64338.0,64337.0,0.00011292]
[1724544581785,1.24198908,64338.0,64337.0,0.00011292]
[1724544581982,1.24198908,64338.0,64326.0,0.3235]
[1724544582179,0.3608,64329.0,64326.0,0.3235]
[1724544582785,4e-05,64327.0,64326.0,0.3235]
[1724544583990,0.00304,64327.0,64326.0,0.3235]
[1724544584391,0.00304,64327.0,64326.0,0.401194]
[1724544584585,0.00204,64327.0,64326.0,0.401194]
[1724544584990,0.00204,64327.0,64326.0,0.077694]
[1724544586294,4e-05,64327.0,64326.0,0.077694]
[1724544586494,0.00304,64327.0,64326.0,0.077694]
[1724544590898,0.00023307,64338.0,64326.0,0.86636]
[1724544591196,0.00023307,64338.0,64333.0,0.077685]
[1724544591197,0.00613413,64338.0,64333.0,0.077685]
[1724544591500,0.00023307,64338.0,64333.0,0.077685]
[1724544592796,0.00323307,64338.0,64333.0,0.077685]
[1724544593100,0.00323307,64338.0,64337.0,0.077681]
[1724544593297,0.01123307,64338.0,64337.0,0.077681]
[1724544593899,0.01692012,64338.0,64337.0,0.077681]
[1724544594302,0.01992012,64338.0,64337.0,0.077681]
[1724544595007,0.01992012,64338.0,64332.0,0.3608]
[1724544595699,4e-05,64333.0,64332.0,0.3608]
[1724544597298,0.00904,64333.0,64332.0,0.3608]
[1724544599604,4e-05,64333.0,64332.0,0.3608]
[1724544599808,0.00904,64333.0,64332.0,0.3608]
[1724544600706,0.00904,64333.0,64332.0,0.40645895]
[1724544601009,0.00904,64333.0,64332.0,0.3608]
[1724544602007,0.00904,64333.0,64332.0,0.438487]
[1724544602505,0.00904,64333.0,64332.0,0.3608]
[1724544604504,0.36984,64333.0,64328.0,0.07601575]
[1724544604808,0.36984,64333.0,64332.0,0.06134144]
[1724544605006,0.36984,64333.0,64331.0,0.06134144]
[1724544605412,0.36984,64333.0,64332.0,0.06134144]
[1724544606614,0.36984,64333.0,64332.0,0.06136851]
[1724544607004,0.36084,64333.0,64332.0,0.06136851]
[1724544607329,0.36884,64333.0,64332.0,0.06136851]
[1724544608306,0.37784,64333.0,64332.0,0.06136851]
[1724544608510,0.37784,64333.0,64324.0,0.3235]
[1724544608511,0.37784,64333.0,64331.0,0.06136851]
[1724544608707,0.317687,64332.0,64329.0,0.06136851]
[1724544608909,0.24,64332.0,64329.0,0.06136851]
[1724544609103,0.37784,64333.0,64329.0,0.06136851]
[1724544609521,4e-05,64330.0,64328.0,0.06136851]
[1724544610207,4e-05,64329.0,64324.0,0.3235]
[1724544610408,4e-05,64329.0,64326.0,0.3608]
[1724544612715,4e-05,64329.0,64327.0,0.06136401]
[1724544612911,4e-05,64329.0,64326.0,0.06136401]
[1724544613113,4e-05,64329.0,64325.0,0.04603211]
[1724544613421,0.3608,64326.0,64325.0,0.04603138]
[1724544613917,0.36084,64326.0,64325.0,0.04603127]
[1724544614520,0.36484,64326.0,64325.0,0.04603127]
[1724544615323,0.36484,64326.0,64324.0,0.04603127]
[1724544615823,0.36484,64326.0,64322.0,0.04603127]
[1724544616319,0.24,64324.0,64322.0,0.04603127]
[1724544616528,4e-05,64323.0,64322.0,0.04603127]
[1724544616722,4e-05,64323.0,64321.0,0.04603127]
[1724544617258,4e-05,64323.0,64316.0,0.06136401]
[1724544617259,4e-05,64323.0,64320.0,0.04603127]
[1724544617912,4e-05,64321.0,64320.0,0.04603127]
[1724544619215,4e-05,64321.0,64315.0,0.38486401]
[1724544619444,4e-05,64321.0,64320.0,0.04598773]
[1724544619619,4e-05,64321.0,64315.0,0.38486401]
[1724544619813,4e-05,64321.0,64316.0,0.02429901]
[1724544620015,4e-05,64321.0,64317.0,0.02429901]
[1724544620328,4e-05,64321.0,64320.0,0.04598336]
[1724544620616,4e-05,64321.0,64319.0,0.04598336]
[1724544621022,0.3608,64320.0,64319.0,0.04598336]
[1724544621212,0.3608,64320.0,64313.0,0.42216401]
[1724544621213,0.3608,64320.0,64316.0,0.04598336]
[1724544621412,0.24,64317.0,64315.0,0.04598336]
[1724544621615,0.24,64317.0,64309.0,0.38486401]
[1724544621616,0.24,64317.0,64313.0,0.04598336]
[1724544621822,0.24,64317.0,64312.0,0.04598336]
[1724544622015,0.3608,64313.0,64312.0,0.04598336]
[1724544622313,0.3608,64313.0,64311.0,0.04598336]
[1724544622920,0.3608,64313.0,64312.0,0.04598323]
[1724544623114,0.3608,64313.0,64312.0,0.04594323]
[1724544623319,0.2457264,64323.0,64308.0,0.42216401]
[1724544623516,0.001,64313.0,64309.0,0.08566364]
[1724544623822,0.001,64313.0,64309.0,0.13907801]
[1724544624020,0.001,64313.0,64310.0,0.08566351]
[1724544624225,0.001,64313.0,64310.0,0.077713]
[1724544624425,0.001,64313.0,64310.0,0.13907701]
[1724544625121,0.0057264,64323.0,64322.0,0.077699]
[1724544625323,0.0008,64331.0,64322.0,0.438499]
[1724544625525,0.077686,64333.0,64322.0,0.438499]
[1724544625830,0.3608,64330.0,64322.0,0.3608]
[1724544626899,0.00323307,64324.0,64322.0,0.3608]
[1724544627420,0.00190604,64324.0,64323.0,0.544098]
[1724544627621,0.00190604,64324.0,64323.0,1.24520741]
[1724544627821,0.3608,64345.0,64334.0,0.077684]
[1724544628125,0.24,64351.0,64340.0,0.3608]
[1724544628126,0.3608,64351.0,64340.0,0.3608]
[1724544628324,0.00583277,64351.0,64347.0,0.3608]
[1724544628528,0.00023307,64355.0,64347.0,0.3608]
[1724544628821,0.00023307,64355.0,64354.0,0.3608]
[1724544629320,0.00023307,64355.0,64354.0,0.36084]
[1724544630530,0.01023307,64355.0,64354.0,4e-05]
[1724544632015,0.01023307,64355.0,64354.0,0.36084]
[1724544632428,0.01023307,64355.0,64354.0,0.827]
[1724544632622,0.01023307,64355.0,64354.0,0.36084]
[1724544633818,0.00023307,64355.0,64354.0,0.36084]
[1724544634129,0.01023307,64355.0,64354.0,0.36084]
[1724544634530,0.01023307,64355.0,64354.0,4e-05]
[1724544634825,0.37103307,64355.0,64354.0,4e-05]
[1724544636232,0.37003307,64355.0,64354.0,4e-05]
[1724544636628,0.37003307,64355.0,64343.0,0.00023307]
[1724544636824,0.3608,64347.0,64343.0,0.00023307]
[1724544637127,0.077663,64352.0,64343.0,0.00023307]
[1724544637425,4e-05,64344.0,64343.0,0.00023307]
[1724544639025,4e-05,64344.0,64343.0,0.00123307]
[1724544639835,4e-05,64344.0,64343.0,0.00023307]
[1724544640826,4e-05,64344.0,64343.0,0.86647307]
[1724544641026,0.00404,64344.0,64343.0,0.86647307]
[1724544641327,0.07789207,64355.0,64343.0,0.94414607]
[1724544641634,0.07789207,64355.0,64349.0,0.3608]
[1724544641827,0.00023307,64355.0,64349.0,0.3608]
[1724544642035,0.00023307,64355.0,64351.0,0.077663]
[1724544642228,0.00023307,64355.0,64354.0,4e-05]
[1724544642624,0.00023307,64355.0,64354.0,0.4662]
[1724544642826,0.00023307,64355.0,64354.0,0.8662]
[1724544643030,0.00023307,64355.0,64354.0,0.4662]
[1724544643227,0.00023307,64355.0,64354.0,4e-05]
[1724544643834,0.01423307,64355.0,64354.0,4e-05]
[1724544645934,0.01423307,64355.0,64354.0,0.0777]
[1724544647632,0.01423307,64355.0,64354.0,4e-05]
[1724544650737,0.01423307,64355.0,64354.0,0.4662]
[1724544651530,0.01423307,64355.0,64354.0,4e-05]
[1724544652634,0.01423307,64355.0,64343.0,0.00023307]
[1724544652635,0.61503307,64355.0,64343.0,0.00023307]
[1724544653037,0.2689,64354.0,64343.0,0.00023307]
[1724544653235,0.077666,64349.0,64343.0,0.00023307]
[1724544653435,4e-05,64344.0,64343.0,0.00023307]
[1724544654731,4e-05,64344.0,64343.0,0.46647307]
[1724544655333,4e-05,64344.0,64343.0,0.54414607]
[1724544655654,4e-05,64344.0,64343.0,0.07790607]
[1724544656035,0.01004,64344.0,64343.0,0.07790607]
[1724544656842,0.01004,64344.0,64343.0,0.00023307]
[1724544664443,0.01597778,64344.0,64343.0,0.00023307]
[1724544665341,0.01004,64344.0,64343.0,0.00023307]
[1724544666337,4e-05,64344.0,64343.0,0.00023307]
[1724544666541,0.01004,64344.0,64343.0,0.00023307]
[1724544666950,4e-05,64344.0,64343.0,0.00023307]
[1724544667153,0.37084,64344.0,64343.0,0.00023307]
[1724544670256,0.34584,64344.0,64343.0,0.00023307]
[1724544670855,0.01,64344.0,64343.0,0.00023307]
[1724544674659,0.01,64344.0,64343.0,0.07790607]
[1724544674859,0.01,64344.0,64343.0,0.1021939]
[1724544675157,0.01,64344.0,64343.0,0.16342168]
[1724544675392,0.01,64344.0,64343.0,0.07790607]
[1724544675602,0.01,64344.0,64343.0,0.10219446]
[1724544675755,0.01,64344.0,64343.0,0.07790607]
[1724544676066,0.00617781,64350.0,64343.0,0.10219449]
[1724544676253,0.01,64344.0,64343.0,0.07790607]
[1724544676459,0.01,64344.0,64343.0,0.02452114]
[1724544676762,0.01,64344.0,64343.0,0.00023307]
[1724544678757,0.077669,64347.0,64343.0,0.00023307]
[1724544679562,0.00996,64344.0,64343.0,0.00023307]
[1724544679964,0.077669,64347.0,64343.0,0.00023307]
[1724544680164,0.09397126,64347.0,64343.0,0.00023307]
[1724544681055,0.08397126,64347.0,64343.0,0.00023307]
[1724544681254,0.01,64344.0,64343.0,0.00023307]
[1724544682277,0.087672,64344.0,64343.0,0.42226085]
[1724544682464,0.09539872,64344.0,64343.0,0.00023307]
[1724544682967,0.08539872,64344.0,64343.0,0.00023307]
[1724544683358,0.077673,64343.0,64332.0,0.38472778]
[1724544683565,0.6008,64333.0,64325.0,0.00136]
[1724544683768,0.6008,64333.0,64319.0,0.06122778]
[1724544683769,0.6008,64326.0,64319.0,0.06122778]
[1724544683969,0.6008,64326.0,64318.0,0.06122778]
[1724544684176,0.6008,64326.0,64317.0,0.06122778]
[1724544684573,0.62416001,64326.0,64314.0,0.42202778]
[1724544684769,0.077696,64325.0,64314.0,0.3608]
[1724544685215,0.6016,64326.0,64314.0,0.42202778]
[1724544685475,4e-05,64315.0,64314.0,0.42202778]
[1724544685673,4e-05,64315.0,64314.0,0.3608]
[1724544686867,0.00104,64315.0,64314.0,0.3608]
[1724544692575,0.00104,64315.0,64305.0,0.87636]
[1724544692775,0.077715,64309.0,64300.0,0.06122778]
[1724544692977,0.077715,64309.0,64298.0,0.40007262]
[1724544692978,0.611216,64308.0,64298.0,0.3235]
[1724544693171,0.5335,64308.0,64298.0,0.3235]
[1724544693376,0.5335,64308.0,64298.0,0.401227]
[1724544693885,4e-05,64299.0,64298.0,0.401227]
[1724544694087,0.5335,64308.0,64299.0,0.077726]
[1724544694271,0.5335,64308.0,64305.0,0.3608]
[1724544694677,0.5345,64308.0,64305.0,0.3608]
[1724544694887,0.5345,64308.0,64307.0,4e-05]
[1724544695980,0.077719,64306.0,64292.0,0.00014789]
[1724544696191,0.3608,64301.0,64292.0,0.00014789]
[1724544696577,0.3608,64301.0,64293.0,0.077734]
[1724544696779,0.3608,64301.0,64292.0,0.00014789]
[1724544697488,0.3618,64301.0,64292.0,0.00014789]
[1724544698882,0.24,64299.0,64292.0,0.00014789]
[1724544700181,0.48996001,64298.0,64292.0,0.00014789]
[1724544700583,0.4666,64297.0,64292.0,0.00014789]
[1724544700884,0.07773,64296.0,64292.0,0.00014789]
[1724544701083,0.0008,64297.0,64292.0,0.00014789]
[1724544701290,0.001,64299.0,64294.0,0.077732]
[1724544701790,0.001,64299.0,64292.0,0.00014789]
[1724544702591,0.001,64297.0,64293.0,0.077694]
[1724544702984,0.363717,64307.0,64293.0,0.077694]
[1724544703185,0.001,64299.0,64293.0,0.077694]
[1724544703381,0.001,64299.0,64292.0,0.00014789]
[1724544703581,0.10108101,64304.0,64292.0,0.00014789]
[1724544703786,0.001,64297.0,64292.0,0.00014789]
[1724544705190,0.02966918,64304.0,64292.0,0.00014789]
[1724544705191,0.077724,64301.0,64292.0,0.00014789]
[1724544705388,0.001,64299.0,64292.0,0.00014789]
[1724544705780,0.077725,64300.0,64292.0,0.00014789]
[1724544705988,0.001,64297.0,64292.0,0.00014789]
[1724544706376,0.077727,64299.0,64292.0,0.00014789]
[1724544706578,0.078727,64299.0,64292.0,0.00014789]
[1724544707086,0.078727,64299.0,64298.0,4e-05]
[1724544707087,0.077727,64299.0,64298.0,4e-05]
[1724544708588,0.078727,64299.0,64298.0,4e-05]
[1724544708987,1.185287,64299.0,64298.0,4e-05]
[1724544709286,1.185287,64299.0,64292.0,0.00014789]
[1724544709287,0.077734,64293.0,64292.0,0.00014789]
[1724544710086,0.077774,64293.0,64292.0,0.00014789]
[1724544710894,4e-05,64293.0,64292.0,0.00014789]
[1724544711793,0.00104,64293.0,64292.0,0.00014789]
[1724544715549,1.306174,64293.0,64292.0,0.00014789]
[1724544715890,0.906174,64293.0,64292.0,0.00014789]
[1724544717706,1.306174,64293.0,64292.0,0.00014789]
[1724544718987,0.07774,64288.0,64281.0,0.06122778]
[1724544719190,0.07774,64288.0,64280.0,0.42202778]
[1724544719389,0.00023326,64291.0,64280.0,0.42202778]
[1724544719791,0.07797026,64291.0,64281.0,0.06122778]
[1724544719990,0.02336001,64290.0,64281.0,0.06118778]
[1724544720199,0.00014789,64289.0,64281.0,0.06118778]
[1724544720401,0.00010789,64289.0,64281.0,0.06118778]
[1724544720593,0.00010789,64289.0,64288.0,0.43854]
[1724544721098,0.001,64293.0,64288.0,0.3608]
[1724544721293,0.001,64293.0,64292.0,0.077735]
[1724544721502,0.00605687,64298.0,64292.0,0.077735]
[1724544721705,0.02336001,64303.0,64289.0,0.33367262]
[1724544721905,0.10108201,64303.0,64289.0,0.2571]
[1724544722099,0.10108201,64303.0,64288.0,0.43737262]
[1724544722100,0.001,64289.0,64288.0,0.43737262]
[1724544722703,0.077736,64292.0,64284.0,0.07675975]
[1724544722897,0.3608,64293.0,64283.0,0.07675975]
[1724544723606,0.3608,64293.0,64284.0,0.07675975]
[1724544724394,0.3608,64293.0,64292.0,4e-05]
[1724544724803,1.2274,64293.0,64292.0,4e-05]
[1724544725006,0.8274,64293.0,64292.0,4e-05]
[1724544725204,0.3608,64293.0,64292.0,4e-05]
[1724544725402,0.3669402,64293.0,64292.0,4e-05]
[1724544725906,0.3679402,64293.0,64292.0,4e-05]
[1724544727006,0.3679402,64293.0,64282.0,0.00023326]
[1724544727007,0.07774,64288.0,64282.0,0.00023326]
[1724544727203,0.3608,64283.0,64282.0,0.00023326]
[1724544727807,4e-05,64283.0,64282.0,0.00023326]
[1724544728398,4e-05,64283.0,64282.0,0.19552256]
[1724544728599,0.00104,64283.0,64282.0,0.19552256]
[1724544729011,0.00104,64283.0,64282.0,0.00023326]
[1724544732602,0.078786,64283.0,64282.0,0.00023326]
[1724544733307,0.08495565,64283.0,64282.0,0.00023326]
[1724544733504,0.00104,64283.0,64282.0,0.00023326]
[1724544735318,0.078786,64283.0,64282.0,0.00023326]
[1724544740414,0.10214601,64283.0,64282.0,0.00023326]
[1724544742518,0.10214601,64283.0,64265.0,0.3235]
[1724544742519,1.25188001,64283.0,64265.0,0.6843]
[1724544742714,0.24,64272.0,64265.0,0.6843]
[1724544743105,0.24,64272.0,64265.0,0.73038337]
[1724544743406,4e-05,64266.0,64265.0,0.6843]
[1724544743611,4e-05,64266.0,64265.0,0.3608]
[1724544745240,0.00104,64266.0,64265.0,0.3608]
[1724544746019,0.00104,64266.0,64264.0,0.077768]
[1724544746505,0.00104,64266.0,64262.0,0.04608337]
[1724544746712,0.00104,64266.0,64258.0,0.3608]
[1724544746713,4e-05,64265.0,64260.0,0.04608337]
[1724544747013,4e-05,64265.0,64261.0,0.04608337]
[1724544747212,4e-05,64265.0,64260.0,0.04608337]
[1724544748125,4e-05,64261.0,64260.0,0.04608337]
[1724544748514,4e-05,64261.0,64258.0,0.3608]
[1724544748515,4e-05,64261.0,64259.0,0.04608337]
[1724544749215,4e-05,64260.0,64259.0,0.04608337]
[1724544750319,4e-05,64260.0,64258.0,0.40688337]
[1724544750620,4e-05,64260.0,64258.0,0.3608]
[1724544751114,4e-05,64259.0,64258.0,0.3608]
[1724544751310,4e-05,64259.0,64256.0,0.04608337]
[1724544752166,4e-05,64257.0,64249.0,0.87648]
[1724544752420,0.001,64259.0,64257.0,0.077777]
[1724544753013,0.001,64259.0,64257.0,0.1237971]
[1724544753316,0.001,64259.0,64258.0,4e-05]
[1724544753719,0.36695644,64268.0,64258.0,4e-05]
[1724544754019,0.001,64259.0,64258.0,4e-05]
[1724544755021,0.077767,64266.0,64258.0,4e-05]
[1724544755523,0.3608,64265.0,64258.0,4e-05]
[1724544755719,0.077767,64266.0,64258.0,4e-05]
[1724544755930,0.3608,64265.0,64258.0,4e-05]
[1724544756224,0.07777,64263.0,64258.0,4e-05]
[1724544756515,0.6016,64265.0,64257.0,0.0460201]
[1724544756718,0.001,64259.0,64257.0,0.0460201]
[1724544757128,0.6018,64265.0,64257.0,0.0460201]
[1724544757316,0.6018,64265.0,64258.0,0.0460201]
[1724544757515,0.6018,64265.0,64255.0,0.3608]
[1724544757516,0.6018,64265.0,64257.0,0.0460201]
[1724544757717,0.001,64259.0,64257.0,0.0460201]
[1724544758318,0.678568,64265.0,64257.0,0.0460201]
[1724544758520,0.679568,64265.0,64257.0,0.0460201]
[1724544759019,0.439568,64265.0,64258.0,0.0460201]
[1724544760028,0.001,64259.0,64258.0,0.0460201]
[1724544760512,0.02336001,64264.0,64258.0,0.0460201]
[1724544760717,0.02336001,64264.0,64258.0,0.04606917]
[1724544761216,0.02336001,64264.0,64259.0,0.04606917]
[1724544761413,0.02336001,64264.0,64255.0,0.3608]
[1724544761414,0.001,64259.0,64255.0,0.3608]
[1724544762326,4e-05,64256.0,64255.0,0.3608]
[1724544762916,0.077819,64256.0,64255.0,0.3608]
[1724544763117,0.077819,64256.0,64251.0,0.04609426]
[1724544763316,0.077819,64256.0,64249.0,0.04609426]
[1724544763317,0.077785,64251.0,64249.0,0.04609426]
[1724544763523,0.077786,64250.0,64248.0,0.04609426]
[1724544764022,0.077782,64254.0,64248.0,0.04609426]
[1724544764322,4e-05,64249.0,64248.0,0.04609426]
[1724544764526,4e-05,64249.0,64247.0,0.3608]
[1724544765268,4e-05,64248.0,64247.0,0.3608]
[1724544765822,4e-05,64248.0,64247.0,0.40689426]
[1724544766427,4e-05,64248.0,64247.0,0.3608]
[1724544767131,0.00104,64248.0,64247.0,0.3608]
[1724544771228,0.00104,64248.0,64247.0,0.48468326]
[1724544771430,0.00104,64248.0,64247.0,0.438589]
[1724544776750,0.00056693,64248.0,64247.0,0.438589]
[1724544777035,0.00056693,64248.0,64247.0,0.5153967]
[1724544777440,0.00056693,64248.0,64247.0,0.6339317]
[1724544777632,0.00056693,64248.0,64247.0,1.024084]
[1724544777933,0.077777,64257.0,64247.0,1.346295]
[1724544778140,0.077777,64257.0,64256.0,0.3608]
[1724544778634,0.00023344,64260.0,64256.0,0.36084]
[1724544778835,0.00023344,64260.0,64259.0,0.04611634]
[1724544779033,0.00023344,64260.0,64259.0,0.438575]
[1724544779332,0.00023344,64260.0,64259.0,0.438615]
[1724544780237,0.00023344,64260.0,64259.0,0.63398431]
[1724544780238,0.00123344,64260.0,64259.0,0.63398431]
[1724544780539,4.4e-07,64260.0,64259.0,1.602916]
[1724544780831,0.077743,64286.0,64275.0,0.077755]
[1724544781032,0.5313,64287.0,64283.0,0.3608]
[1724544781235,0.5305,64287.0,64283.0,0.3608]
[1724544781833,0.2635,64287.0,64286.0,4e-05]
[1724544782437,0.2775,64287.0,64286.0,4e-05]
[1724544782937,0.2635,64287.0,64286.0,4e-05]
[1724544783126,0.2775,64287.0,64286.0,4e-05]
[1724544783432,0.014,64287.0,64286.0,4e-05]
[1724544783682,0.077723,64303.0,64288.0,0.077739]
[1724544783839,0.077723,64303.0,64298.0,0.3608]
[1724544784339,0.077723,64303.0,64302.0,4e-05]
[1724544785231,0.2575,64304.0,64302.0,4e-05]
[1724544785937,0.2575,64304.0,64303.0,4e-05]
[1724544786139,0.54234001,64308.0,64303.0,4e-05]
[1724544786140,0.28054001,64308.0,64303.0,4e-05]
[1724544786332,0.54536001,64308.0,64305.0,0.3608]
[1724544786841,0.54536001,64308.0,64307.0,4e-05]